bitfinex/quotes_ETHUSD_20250923
["timestamp","ask_amount","ask_price","bid_price","bid_amount"]
[1758647577351,10.78516406,4184.9,4184.8,14.5]
[1758647577564,10.32496406,4184.9,4184.8,14.5]
[1758647578940,10.32496406,4184.9,4184.8,17.57740045]
[1758647578941,7.32496406,4184.9,4184.8,17.57740045]
[1758647579140,8.01896406,4184.9,4184.8,14.5]
[1758647579358,7.32496406,4184.9,4184.8,14.5]
[1758647580275,11.38696406,4184.9,4184.8,14.5]
[1758647580460,19.07642382,4184.9,4184.8,14.5]
[1758647580774,19.07642382,4184.9,4183.2,2.067]
[1758647580775,3.0,4184.8,4184.2,2.38994311]
[1758647580976,0.13396406,4184.7,4184.6,2.38971466]
[1758647581143,0.13396406,4184.7,4184.6,2.84581466]
[1758647581472,0.13396406,4184.7,4184.6,3.77786872]
[1758647581652,0.13396406,4184.7,4184.6,18.50956872]
[1758647584274,0.001,4184.9,4184.8,2.38960045]
[1758647584474,0.001,4184.9,4184.8,6.47449645]
[1758647584775,0.001,4184.9,4184.8,7.13840045]
[1758647585076,0.001,4184.9,4184.8,22.68441737]
[1758647585873,0.001,4184.9,4184.8,24.75141737]
[1758647587755,0.001,4184.9,4184.8,18.62341737]
[1758647587992,0.001,4184.9,4184.8,17.93561737]
[1758647588175,0.001,4184.9,4184.8,21.99661737]
[1758647588785,0.001,4184.9,4184.8,22.68441737]
[1758647589352,0.001,4184.9,4184.8,22.22831737]
[1758647589551,0.13493118,4184.9,4184.8,22.22831737]
[1758647589879,0.001,4184.9,4184.8,22.68441737]
[1758647590480,0.001,4184.9,4184.8,22.80361737]
[1758647591902,0.001,4184.9,4184.8,22.11581737]
[1758647592181,0.001,4184.9,4184.8,18.05481737]
[1758647592382,0.001,4184.9,4184.8,22.11481737]
[1758647592585,0.001,4184.9,4184.8,22.35981737]
[1758647593301,0.001,4184.9,4184.8,22.79991737]
[1758647593655,0.001,4184.9,4184.8,18.73991737]
[1758647594189,0.001,4184.9,4184.8,22.11481737]
[1758647595065,0.001,4184.9,4184.8,22.79991737]
[1758647598109,0.001,4184.9,4184.8,22.11481737]
[1758647598904,0.001,4184.9,4184.8,14.6192]
[1758647599103,0.81056518,4184.9,4184.8,21.06780045]
[1758647600370,0.81056518,4184.9,4184.8,14.6192]
[1758647600574,0.81056518,4184.9,4184.8,17.00880045]
[1758647601311,0.81056518,4184.9,4184.8,21.06780045]
[1758647601674,0.81056518,4184.9,4184.8,17.00880045]
[1758647601871,0.81056518,4184.9,4184.8,21.06780045]
[1758647602093,0.56376518,4184.9,4184.8,21.06780045]
[1758647602304,0.13496518,4184.9,4184.8,21.06780045]
[1758647603684,0.13496518,4184.9,4184.8,21.75290045]
[1758647604006,0.13496518,4184.9,4184.8,23.7270616]
[1758647604205,0.13496518,4184.9,4184.8,24.1671616]
[1758647605223,0.13496518,4184.9,4184.8,23.4820616]
[1758647605383,0.13496518,4184.9,4184.8,21.06780045]
[1758647605713,0.13496518,4184.9,4184.8,17.00880045]
[1758647605911,0.81056518,4184.9,4184.8,18.6782]
[1758647606116,0.81056518,4184.9,4184.8,21.06780045]
[1758647606711,0.13496518,4184.9,4184.8,21.06780045]
[1758647608519,0.13522646,4184.9,4184.8,18.6782]
[1758647608708,0.13522646,4184.9,4184.8,21.06780045]
[1758647613024,0.13522646,4184.9,4184.8,21.75290045]
[1758647613418,0.13522646,4184.9,4184.8,24.04796023]
[1758647613644,0.13522646,4184.9,4184.8,24.16716023]
[1758647613941,0.13522646,4184.9,4184.8,23.48206023]
[1758647614145,0.13522646,4184.9,4184.8,21.06780045]
[1758647615034,0.13522646,4184.9,4184.8,17.00880045]
[1758647615350,8.00082646,4184.9,4184.8,14.5]
[1758647615553,17.82136641,4184.9,4184.8,14.5]
[1758647615752,19.84254528,4184.9,4184.8,14.5]
[1758647616117,13.24396996,4184.9,4184.8,14.5]
[1758647616318,19.84254528,4184.9,4184.8,14.5]
[1758647618444,13.24396996,4184.9,4184.8,14.5]
[1758647618632,10.54719109,4184.9,4184.8,16.88960045]
[1758647618832,10.54719109,4184.9,4184.8,14.5]
[1758647619454,10.54719109,4184.9,4184.8,20.94760045]
[1758647619659,10.54719109,4184.9,4184.8,18.558]
[1758647620157,13.99155355,4184.9,4184.8,14.5]
[1758647620360,12.2776102,4184.9,4184.8,14.5]
[1758647620526,11.6020102,4184.9,4184.8,14.5]
[1758647620943,12.2776102,4184.9,4184.8,14.5]
[1758647621636,12.0308102,4184.9,4184.8,14.5]
[1758647621838,12.2680102,4184.9,4184.8,14.5]
[1758647623556,12.0308102,4184.9,4184.8,14.5]
[1758647624481,12.2680102,4184.9,4184.8,14.5]
[1758647625580,11.6020102,4184.9,4184.8,14.5]
[1758647625801,10.54719109,4184.9,4184.8,14.5]
[1758647628365,10.54719109,4184.9,4184.6,4.058]
[1758647628570,0.35619109,4184.8,4184.6,6.70430814]
[1758647628794,10.191,4184.9,4184.6,6.70430814]
[1758647628795,0.35619109,4184.7,4184.6,4.058]
[1758647629520,0.35619109,4184.7,4184.6,18.558]
[1758647630202,0.35619109,4184.7,4184.6,20.94771466]
[1758647630499,0.35619109,4184.7,4184.6,18.558]
[1758647631088,0.35619109,4184.7,4184.6,20.94771466]
[1758647631598,0.35619109,4184.7,4184.6,18.558]
[1758647631901,0.35619109,4184.7,4184.6,20.94771466]
[1758647632299,0.35619109,4184.7,4184.6,18.558]
[1758647632769,0.35619109,4184.7,4184.6,20.94771466]
[1758647633311,0.35634116,4184.7,4184.6,20.94771466]
[1758647633715,7.54634116,4184.7,4184.6,20.94771466]
[1758647634303,7.54634116,4184.7,4184.6,18.7907]
[1758647634508,7.54634116,4184.7,4184.6,18.558]
[1758647634883,7.54634116,4184.7,4184.6,20.94771466]
[1758647635819,7.54634116,4184.7,4184.6,21.18041466]
[1758647636113,7.54634116,4184.7,4184.6,18.558]
[1758647636317,7.54634116,4184.7,4184.6,18.557]
[1758647636619,7.54634116,4184.7,4184.6,20.94671466]
[1758647636818,7.54634116,4184.7,4184.6,18.557]
[1758647637822,7.54634116,4184.7,4184.6,20.94671466]
[1758647638897,7.54634116,4184.7,4184.6,18.557]
[1758647639917,7.54634116,4184.7,4184.6,20.94671466]
[1758647640320,7.54634116,4184.7,4184.6,18.557]
[1758647641237,7.54634116,4184.7,4184.6,14.5]
[1758647641448,14.17067382,4184.7,4184.6,14.5]
[1758647641605,17.35233138,4184.7,4184.6,14.5]
[1758647641802,2.38973518,4184.6,4184.1,4.056]
[1758647642007,5.10514116,4184.5,4184.0,6.44604695]
[1758647642202,0.35634116,4184.4,4184.2,16.88993069]
[1758647642539,0.35634116,4184.3,4184.2,16.88993069]
[1758647642941,0.35634116,4184.3,4184.2,16.88994311]
[1758647643237,0.35634116,4184.3,4184.2,14.5]
[1758647643955,5.84282792,4184.3,4184.2,14.5]
[1758647644149,5.66256446,4184.3,4184.2,14.5]
[1758647644306,4.92489471,4184.3,4184.2,14.5]
[1758647644511,4.86794116,4184.3,4184.2,14.5]
[1758647644813,5.61769471,4184.3,4184.2,14.5]
[1758647645608,12.80769471,4184.3,4184.2,14.5]
[1758647647746,12.11489471,4184.3,4184.2,14.5]
[1758647649029,21.11183495,4184.3,4184.2,14.5]
[1758647649357,27.71041027,4184.3,4184.2,14.5]
[1758647649559,2.39023445,4183.7,4183.1,0.02072721]
[1758647649856,4.41234116,4183.6,4183.1,4.19592721]
[1758647650154,0.35634116,4183.5,4183.2,14.5]
[1758647650354,0.13437653,4183.4,4183.2,14.5]
[1758647650554,0.13437653,4183.3,4183.2,14.5]
[1758647650965,0.13437653,4183.3,4183.2,17.12321443]
[1758647651138,0.13437653,4183.3,4183.2,14.7327]
[1758647652259,0.13437653,4183.3,4183.2,14.5]
[1758647652662,4.41236201,4183.3,4183.2,14.5]
[1758647652857,4.41233257,4183.3,4183.2,14.5]
[1758647653258,4.19037653,4183.3,4183.2,14.5]
[1758647654266,5.33530172,4183.3,4183.2,14.5]
[1758647654462,5.99560172,4183.3,4183.2,14.5]
[1758647655160,4.85067653,4183.3,4183.2,14.5]
[1758647655462,11.25486645,4183.3,4183.2,14.5]
[1758647656466,6.18251443,4183.2,4183.1,0.02072721]
[1758647656770,13.13719891,4183.2,4183.1,0.02072721]
[1758647657078,13.79749891,4183.2,4183.1,0.02072721]
[1758647657276,12.90860967,4183.2,4183.1,0.02072721]
[1758647658670,6.31003435,4183.2,4183.1,0.02072721]
[1758647660571,8.70054878,4183.2,4183.1,0.02072721]
[1758647660876,6.31003435,4183.2,4183.1,0.02072721]
[1758647661178,6.30976433,4183.2,4183.1,0.02072721]
[1758647662849,8.70027876,4183.2,4183.1,0.02072721]
[1758647663250,5.64946433,4183.2,4183.1,0.02072721]
[1758647663476,8.70027876,4183.2,4183.1,0.02072721]
[1758647665348,8.69985032,4183.2,4183.1,0.02072721]
[1758647666483,6.30933589,4183.2,4183.1,0.02072721]
[1758647666672,8.03955032,4183.2,4183.1,0.02072721]
[1758647667071,8.69985032,4183.2,4183.1,0.02072721]
[1758647667471,5.64903589,4183.2,4183.1,0.02072721]
[1758647668276,0.3554107,4183.2,4183.1,0.02072721]
[1758647668587,3.13394809,4183.2,4183.1,3.11359879]
[1758647668753,0.13394809,4183.2,4183.1,17.6375045]
[1758647669086,0.13394809,4183.2,4183.1,17.61359879]
[1758647669586,0.13394809,4183.2,4183.1,15.22302721]
[1758647669962,0.13394809,4183.2,4183.1,17.61359879]
[1758647670392,0.13394809,4183.2,4183.1,15.22302721]
[1758647670592,0.13394809,4183.2,4183.1,17.61359879]
[1758647674003,0.13394809,4183.2,4183.1,20.15054555]
[1758647674927,0.13394809,4183.2,4183.1,24.20454555]
[1758647675089,0.13394809,4183.2,4183.1,20.15054555]
[1758647675291,0.13394809,4183.2,4183.1,24.20454555]
[1758647677342,0.13394809,4183.2,4183.1,24.20354555]
[1758647677545,0.13394809,4183.2,4183.1,17.73279879]
[1758647677840,0.13394809,4183.2,4183.1,21.78579879]
[1758647678342,0.13394809,4183.2,4183.1,18.57372721]
[1758647678544,0.13394809,4183.2,4183.1,14.52072721]
[1758647678839,0.13394809,4183.2,4183.1,16.91129879]
[1758647679544,0.13394809,4183.2,4183.1,14.52072721]
[1758647680407,0.13394809,4183.2,4183.1,17.15799879]
[1758647680630,0.13394809,4183.2,4183.1,17.61359879]
[1758647681006,0.13394809,4183.2,4183.1,14.76742721]
[1758647681408,0.13394809,4183.2,4183.1,14.52072721]
[1758647681662,1.40727846,4183.2,4183.1,14.52072721]
[1758647681867,0.72777846,4183.2,4183.1,14.52072721]
[1758647682201,0.13394809,4183.2,4183.1,17.60369879]
[1758647687856,0.13394809,4183.2,4183.1,21.65569879]
[1758647689026,0.13394809,4183.2,4183.1,17.15859879]
[1758647689220,0.13394809,4183.2,4183.1,21.65569879]
[1758647695106,0.13394809,4183.2,4183.1,24.06033323]
[1758647695978,0.13394809,4183.2,4183.1,23.61523323]
[1758647696179,0.13394809,4183.2,4183.1,24.06033323]
[1758647696684,0.001,4183.3,4183.2,2.39051443]
[1758647696878,0.001,4183.3,4183.2,3.10681957]
[1758647696879,0.13528091,4183.3,4183.2,3.10681957]
[1758647697080,0.13528091,4183.3,4183.2,4.54335941]
[1758647697295,0.51338633,4184.7,4184.5,2.38972991]
[1758647697497,0.66242178,4184.6,4183.8,0.2473]
[1758647697698,0.44480108,4184.5,4184.4,2.38982888]
[1758647697896,0.22242178,4184.5,4184.4,2.38982888]
[1758647698063,0.001,4184.7,4184.4,2.38982888]
[1758647698268,0.001,4184.7,4184.5,17.13707177]
[1758647698472,0.001,4184.7,4184.6,2.4136118]
[1758647698770,0.001,4184.7,4184.6,2.6609118]
[1758647698970,0.001,4184.7,4184.6,2.38971466]
[1758647699281,0.001,4184.7,4184.6,16.88971466]
[1758647699791,0.6805,4184.7,4184.6,14.5]
[1758647699990,0.6805,4184.7,4184.6,16.88971466]
[1758647700187,0.441,4184.7,4184.6,14.5]
[1758647700387,0.6805,4184.7,4184.6,14.5]
[1758647700579,0.6805,4184.7,4184.6,16.88971466]
[1758647700775,0.001,4184.7,4184.6,16.88971466]
[1758647701574,0.001,4184.7,4184.6,14.5]
[1758647701795,0.6805,4184.7,4184.6,14.5]
[1758647702395,0.001,4184.7,4184.6,16.88971466]
[1758647702784,0.001,4184.7,4184.6,23.97598754]
[1758647703619,0.001,4184.7,4184.6,23.53088754]
[1758647703780,0.001,4184.7,4184.6,19.23458754]
[1758647704078,0.6805,4184.7,4184.6,14.5]
[1758647704280,0.001,4184.7,4184.6,14.5]
[1758647704508,0.6805,4184.7,4184.6,14.5]
[1758647704927,3.29221216,4184.7,4184.6,14.5]
[1758647705333,3.29221216,4184.7,4183.6,4.049]
[1758647705334,3.792,4184.5,4183.6,4.049]
[1758647705630,0.792,4184.3,4183.5,2.39029965]
[1758647705833,3.4615546,4184.2,4183.7,14.5]
[1758647706042,3.29155587,4184.1,4183.7,14.5]
[1758647706331,0.44,4184.0,4183.7,14.5]
[1758647706536,0.6795,4184.0,4183.7,14.5]
[1758647707131,0.44,4183.9,4183.7,14.5]
[1758647707433,0.6795,4183.8,4183.7,14.5]
[1758647708822,5.58379981,4183.8,4183.7,14.5]
[1758647709151,3.35611242,4183.8,4183.7,14.5]
[1758647709640,3.35611242,4183.8,4183.7,16.89022874]
[1758647710129,3.35611242,4183.8,4183.7,14.5]
[1758647710328,0.35611242,4183.8,4183.7,16.89022874]
[1758647710534,0.35611242,4183.8,4183.7,15.1924]
[1758647710731,0.35611242,4183.8,4183.7,14.5]
[1758647710932,0.79611242,4183.8,4183.7,14.5]
[1758647711133,0.35611242,4183.8,4183.7,14.5]
[1758647713661,0.81961242,4183.8,4183.7,14.5]
[1758647713832,4.53573356,4183.8,4183.7,14.5]
[1758647714026,0.792,4183.7,4183.1,0.02072721]
[1758647714227,0.1192,4183.5,4183.1,0.02072721]
[1758647714457,0.13410789,4183.4,4183.1,0.02072721]
[1758647714760,0.13410789,4183.3,4183.2,14.5]
[1758647715264,0.85307286,4183.3,4183.2,14.5]
[1758647715753,1.54487286,4183.3,4183.2,14.5]
[1758647717956,0.85307286,4183.3,4183.2,14.5]
[1758647718157,1.54487286,4183.3,4183.2,14.5]
[1758647718458,3.93533015,4183.3,4183.2,14.5]
[1758647718661,1.54487286,4183.3,4183.2,14.5]
[1758647718966,4.94951365,4183.3,4183.2,14.5]
[1758647719565,2.55905636,4183.3,4183.2,14.5]
[1758647719759,4.94951365,4183.3,4183.2,14.5]
[1758647722156,6.60705636,4183.3,4183.2,14.5]
[1758647722331,6.38487286,4183.3,4183.2,14.5]
[1758647722666,5.69307286,4183.3,4183.2,14.5]
[1758647723466,8.08353015,4183.3,4183.2,14.5]
[1758647723767,5.69307286,4183.3,4183.2,14.5]
[1758647725664,4.18210789,4183.3,4183.2,15.1984]
[1758647725838,0.13410789,4183.3,4183.2,15.1984]
[1758647726370,0.13410789,4183.3,4183.2,14.5]
[1758647726532,0.13410789,4183.3,4183.2,17.58891443]
[1758647726736,0.13410789,4183.3,4183.2,19.99364104]
[1758647728762,0.13410789,4183.3,4183.2,24.04064104]
[1758647731481,0.13410789,4183.3,4183.2,16.90472661]
[1758647731656,0.13410789,4183.3,4183.2,14.5]
[1758647731657,0.82590789,4183.3,4183.2,14.5]
[1758647731864,1.95921098,4183.3,4183.2,14.5]
[1758647732062,4.34966827,4183.3,4183.2,14.5]
[1758647732462,1.95921098,4183.3,4183.2,14.5]
[1758647732885,8.37337305,4183.3,4183.2,14.5]
[1758647733071,8.88519489,4183.3,4183.2,14.5]
[1758647733800,12.14019489,4183.3,4183.2,14.5]
[1758647734295,12.14044572,4183.3,4183.2,14.5]
[1758647734697,12.93244572,4183.3,4183.2,14.5]
[1758647735927,12.93344572,4183.3,4183.2,14.5]
[1758647738732,19.54071734,4183.3,4183.2,14.5]
[1758647740533,20.2597926,4183.3,4183.2,14.5]
[1758647744146,6.18251443,4183.2,4183.1,0.02072721]
[1758647744375,10.16893568,4183.2,4183.1,0.02072721]
[1758647746113,12.7899575,4182.9,4182.8,0.004]
[1758647746320,17.70424115,4182.9,4182.8,0.004]
[1758647746533,18.3796933,4182.9,4182.8,0.004]
[1758647746815,19.8999945,4182.9,4182.8,0.004]
[1758647747517,3.8684358,4182.9,4182.8,0.7037]
[1758647747864,7.40161396,4182.9,4182.8,0.7037]
[1758647748071,0.8684358,4182.9,4182.8,3.09444304]
[1758647748271,0.35661396,4182.9,4182.8,4.77260743]
[1758647748568,0.35661396,4182.9,4182.8,15.2037]
[1758647749617,0.35661396,4182.9,4182.8,17.59444304]
[1758647749880,0.13410789,4182.9,4182.8,19.99827206]
[1758647750893,0.13410789,4182.9,4182.8,26.60554368]
[1758647752381,0.001,4183.3,4183.2,2.39051443]
[1758647752579,0.13521935,4183.3,4183.2,6.45941957]
[1758647752778,0.13521935,4183.3,4183.2,7.13521443]
[1758647752984,0.13521935,4183.3,4183.2,8.08779509]
[1758647753284,0.001,4183.8,4183.2,8.08779509]
[1758647753285,0.001,4183.8,4183.7,8.99750036]
[1758647753485,0.001,4183.8,4183.7,15.11050036]
[1758647753786,0.001,4183.8,4183.7,9.20292874]
[1758647753952,0.001,4183.8,4183.7,24.86225224]
[1758647754865,0.001,4183.8,4183.7,22.79325224]
[1758647756087,0.001,4183.8,4183.7,22.91245224]
[1758647756462,0.001,4183.8,4183.7,16.4782235]
[1758647756663,0.001,4183.8,4183.7,14.5]
[1758647756961,0.001,4183.8,4183.7,18.544]
[1758647760157,0.001,4183.8,4183.7,14.5]
[1758647762158,0.001,4183.8,4183.7,16.89022874]
[1758647762363,0.001,4183.8,4183.7,14.5]
[1758647762792,0.001,4183.8,4183.7,16.89022874]
[1758647763092,0.001,4183.8,4183.7,14.5]
[1758647763863,0.001,4183.8,4183.7,16.89022874]
[1758647764167,0.001,4183.8,4183.7,14.5]
[1758647765117,0.13483202,4183.8,4183.7,14.5]
[1758647765719,0.001,4183.8,4183.7,14.5]
[1758647765916,0.13483271,4183.8,4183.7,14.5]
[1758647768209,0.57923271,4183.8,4183.7,14.5]
[1758647768383,10.17926018,4183.8,4183.7,14.5]
[1758647768580,13.40133638,4183.8,4183.7,14.5]
[1758647768779,13.40133638,4183.8,4182.8,0.004]
[1758647768780,2.39045416,4183.4,4182.9,4.043]
[1758647769018,3.19960477,4183.3,4182.8,4.1662]
[1758647769321,0.13383271,4183.2,4182.8,4.1662]
[1758647769484,0.13383271,4183.1,4182.8,4.1662]
[1758647769685,0.13383271,4183.0,4182.8,4.1662]
[1758647769919,0.80913271,4182.9,4182.8,0.004]
[1758647770093,0.92833271,4182.9,4182.8,0.004]
[1758647770295,0.92833271,4182.9,4182.8,14.504]
[1758647771995,3.31901859,4182.9,4182.8,14.504]
[1758647772199,0.92833271,4182.9,4182.8,14.504]
[1758647772622,0.69743271,4182.9,4182.8,14.504]
[1758647773343,3.08811859,4182.9,4182.8,14.504]
[1758647773524,3.31521859,4182.9,4182.8,14.504]
[1758647773708,0.92453271,4182.9,4182.8,14.504]
[1758647774340,3.31521859,4182.9,4182.8,14.504]
[1758647774811,0.92453271,4182.9,4182.8,14.504]
[1758647776537,0.69743271,4182.9,4182.8,14.504]
[1758647778051,0.92453271,4182.9,4182.8,14.504]
[1758647778533,0.25303271,4182.9,4182.8,14.504]
[1758647779140,0.13383271,4182.9,4182.8,14.7357]
[1758647779438,0.13383271,4182.9,4182.8,23.08284304]
[1758647779637,0.968,4183.8,4183.3,2.39042563]
[1758647779813,0.968,4183.8,4182.8,20.6921]
[1758647779814,0.13395711,4183.7,4183.5,2.39034301]
[1758647780019,0.001,4183.8,4183.6,4.76080285]
[1758647780224,0.001,4183.8,4183.6,4.042]
[1758647780225,0.13395196,4183.7,4183.6,4.042]
[1758647780454,0.13395196,4183.7,4183.6,4.7369]
[1758647780666,0.13395196,4183.7,4183.6,4.042]
[1758647780859,0.13395196,4183.7,4183.6,18.542]
[1758647781157,0.13395196,4183.7,4183.6,19.2369]
[1758647781366,0.13395196,4183.7,4183.6,15.1949]
[1758647781662,0.13395196,4183.7,4183.6,14.5]
[1758647781862,17.7792201,4183.7,4183.6,14.5]
[1758647782065,17.06601183,4183.7,4183.6,14.5]
[1758647782355,2.39062088,4183.1,4182.7,0.004]
[1758647782526,0.13396959,4183.0,4182.7,0.004]
[1758647782725,0.13396959,4182.9,4182.7,0.004]
[1758647783257,0.13396959,4182.9,4182.8,14.504]
[1758647783635,0.13396959,4182.9,4182.8,23.12916304]
[1758647786638,0.13415896,4182.9,4182.8,23.12916304]
[1758647789293,0.13415896,4182.9,4182.8,23.24836304]
[1758647790154,0.13415896,4182.9,4182.8,16.81562]
[1758647790368,0.13415896,4182.9,4182.8,18.6642]
[1758647790974,7.32415896,4182.9,4182.8,18.6642]
[1758647791970,7.32415896,4182.9,4182.8,14.504]
[1758647793802,8.21733775,4182.9,4182.8,14.504]
[1758647795934,7.54703775,4182.9,4182.8,18.545]
[1758647796228,7.32415896,4182.9,4182.8,21.63064304]
[1758647796388,7.32415896,4182.9,4182.8,21.74984304]
[1758647796889,7.32415896,4182.9,4182.8,19.3591]
[1758647797224,7.32415896,4182.9,4182.8,18.545]
[1758647797527,7.32415896,4182.9,4182.8,14.504]
[1758647798431,7.32415896,4182.9,4182.8,16.89474304]
[1758647798730,7.32415896,4182.9,4182.8,14.504]
[1758647801528,7.5472323,4182.9,4182.8,14.7357]
[1758647801698,7.5472323,4182.9,4182.8,14.504]
[1758647802224,11.06120263,4182.9,4182.8,14.504]
[1758647802684,13.45188851,4182.9,4182.8,14.504]
[1758647802849,11.06120263,4182.9,4182.8,14.504]
[1758647803276,15.10120263,4182.9,4182.8,14.504]
[1758647806797,17.49188851,4182.9,4182.8,14.504]
[1758647810014,15.10120263,4182.9,4182.8,14.504]
[1758647810499,17.49188851,4182.9,4182.8,14.504]
[1758647810706,15.10120263,4182.9,4182.8,14.504]
[1758647811087,17.49188851,4182.9,4182.8,14.504]
[1758647811297,15.10120263,4182.9,4182.8,14.504]
[1758647813370,11.06120263,4182.9,4182.8,14.7524]
[1758647813677,14.5872323,4182.9,4182.8,14.504]
[1758647815415,15.10114577,4182.9,4182.8,14.504]
[1758647815576,17.49183165,4182.9,4182.8,14.504]
[1758647815777,15.10114577,4182.9,4182.8,14.504]
[1758647816191,17.49183165,4182.9,4182.8,14.504]
[1758647817218,15.10114577,4182.9,4182.8,14.504]
[1758647818219,17.49183165,4182.9,4182.8,14.504]
[1758647818390,15.10114577,4182.9,4182.8,14.504]
[1758647819318,11.06114577,4182.9,4182.8,15.2016]
[1758647820709,11.06114577,4182.9,4182.8,14.7524]
[1758647820932,8.06114577,4182.9,4182.8,16.47944964]
[1758647821239,0.13415896,4182.9,4182.8,19.43859268]
[1758647821749,0.13415896,4182.9,4182.8,19.19019268]
[1758647821949,0.13415896,4182.9,4182.8,20.38924964]
[1758647822846,0.13415896,4182.9,4182.8,23.47759268]
[1758647823715,0.13415896,4182.9,4182.8,25.54559268]
[1758647823919,0.001,4183.3,4183.2,2.39051443]
[1758647824243,0.001,4183.3,4183.2,6.42951443]
[1758647824450,0.001,4183.3,4183.2,7.24631443]
[1758647824809,0.001,4183.3,4183.2,21.74631443]
[1758647825013,0.001,4183.3,4183.2,22.27680736]
[1758647825753,0.001,4183.3,4183.2,25.27680736]
[1758647825938,0.001,4183.3,4183.2,25.94960736]
[1758647826823,0.001,4183.3,4183.2,21.91060736]
[1758647827023,0.001,4183.3,4183.2,28.01660736]
[1758647827253,0.001,4183.3,4183.2,25.94860736]
[1758647827552,0.001,4183.3,4183.2,28.01660736]
[1758647830416,0.021,4184.9,4184.6,10.08396733]
[1758647830618,0.021,4184.9,4184.6,15.36834316]
[1758647830865,0.021,4184.9,4184.6,8.37169049]
[1758647831050,0.021,4184.9,4184.6,22.87169049]
[1758647833628,0.001,4185.2,4184.8,2.38960045]
[1758647833830,0.001,4185.2,4185.0,2.38948626]
[1758647834053,0.001,4185.2,4185.0,2.86916007]
[1758647834254,0.001,4185.2,4185.0,3.57376007]
[1758647834551,0.001,4185.2,4185.0,18.07376007]
[1758647835752,0.001,4185.6,4185.5,2.38920081]
[1758647836051,0.001,4185.6,4185.5,14.50146556]
[1758647836252,0.001,4185.6,4185.5,15.18217356]
[1758647836662,0.001,4185.6,4185.5,32.56297356]
[1758647836845,0.001,4185.6,4185.5,33.47417356]
[1758647837351,0.001,4186.6,4185.5,33.47417356]
[1758647837352,0.7021,4188.0,4186.9,2.38840192]
[1758647837548,0.7021,4188.0,4186.9,19.42449478]
[1758647837727,0.001,4188.0,4186.9,20.24829478]
[1758647838260,0.001,4188.0,4187.8,2.38788862]
[1758647838437,0.001,4188.0,4187.8,14.14102017]
[1758647838633,0.001,4188.0,4187.9,2.38783161]
[1758647838937,0.001,4188.0,4187.9,18.09008029]
[1758647839134,0.001,4188.0,4187.9,22.12608029]
[1758647839851,0.001,4188.0,4187.9,22.37528029]
[1758647841133,0.001,4188.0,4187.9,26.74188029]
[1758647842060,0.73636157,4191.3,4187.9,23.44284868]
[1758647842374,0.73636157,4191.3,4190.0,0.1192]
[1758647842375,2.1852,4190.7,4190.0,0.1192]
[1758647842548,3.0,4190.5,4190.0,0.1192]
[1758647842724,0.83343981,4190.4,4190.1,14.5]
[1758647842925,5.38652092,4190.2,4190.1,14.5]
[1758647843150,1.68093858,4190.2,4190.1,14.5]
[1758647843361,0.95252032,4190.2,4190.1,14.5]
[1758647843567,0.8203,4190.2,4190.1,14.5]
[1758647844233,6.20682092,4190.2,4190.1,14.5]
[1758647844432,6.33890514,4190.2,4190.1,14.5]
[1758647845325,6.33990514,4190.2,4190.1,14.5]
[1758647845530,7.212538,4190.2,4190.1,14.5]
[1758647846550,2.38673462,4189.9,4189.3,0.1192]
[1758647846764,4.035,4189.9,4189.3,0.1192]
[1758647846965,2.38689847,4189.6,4189.4,14.5]
[1758647847269,0.7011,4189.5,4189.4,14.5]
[1758647847758,3.08801968,4189.5,4189.4,14.5]
[1758647848064,6.93550263,4189.5,4189.4,14.5]
[1758647848372,7.18681754,4189.5,4189.4,14.5]
[1758647849066,7.18681754,4189.5,4188.2,4.033]
[1758647849067,2.38724068,4189.0,4188.2,4.033]
[1758647849244,0.13211491,4188.9,4188.4,0.1192]
[1758647849440,4.033,4189.0,4188.5,14.5]
[1758647849441,0.83321491,4188.8,4188.5,14.5]
[1758647849648,0.7011,4188.7,4188.5,14.5]
[1758647849982,0.7011,4188.6,4188.5,14.5]
[1758647850547,1.14225617,4188.6,4188.5,14.5]
[1758647850757,6.22084618,4188.6,4188.5,14.5]
[1758647850966,3.83341363,4188.6,4188.5,14.5]
[1758647851169,6.44150972,4188.6,4188.5,14.5]
[1758647851950,6.94980289,4188.6,4188.5,14.5]
[1758647852248,7.89543573,4188.6,4188.5,14.5]
[1758647853169,4.80690318,4188.6,4188.5,14.5]
[1758647853369,3.86127034,4188.6,4188.5,14.5]
[1758647853569,3.86127034,4188.6,4188.5,16.88748955]
[1758647853737,3.35297717,4188.6,4188.5,2.38748955]
[1758647854068,0.35297717,4188.6,4188.5,2.38748955]
[1758647854241,0.35297717,4188.6,4188.5,14.5]
[1758647854446,0.86127034,4188.6,4188.5,14.5]
[1758647854653,0.86127034,4188.6,4188.5,16.88748955]
[1758647854848,0.35297717,4188.6,4188.5,14.5]
[1758647855335,0.86127034,4188.6,4188.5,17.13668955]
[1758647855534,0.86127034,4188.6,4188.5,17.71128955]
[1758647855732,0.35297717,4188.6,4188.5,17.71128955]
[1758647856133,0.86309467,4188.6,4188.5,17.71128955]
[1758647856582,0.86309467,4188.6,4188.5,17.00668955]
[1758647856734,0.86309467,4188.6,4188.5,21.03868955]
[1758647859668,0.35297717,4188.6,4188.5,21.74328955]
[1758647859866,0.86426057,4188.6,4188.5,21.74328955]
[1758647860065,0.86426057,4188.6,4188.5,21.28788955]
[1758647860373,0.86426057,4188.6,4188.5,21.74328955]
[1758647860576,0.86426057,4188.6,4188.5,24.11083886]
[1758647861174,0.86426057,4188.6,4188.5,19.37423886]
[1758647861354,0.86426057,4188.6,4188.5,21.27758955]
[1758647861754,0.86426057,4188.6,4188.5,21.72808955]
[1758647862279,0.86426057,4188.6,4188.5,21.27758955]
[1758647862707,0.86426057,4188.6,4188.5,14.6192]
[1758647862989,1.32496057,4188.6,4188.5,17.01068955]
[1758647863136,1.32596057,4188.6,4188.5,17.01068955]
[1758647863344,0.86526057,4188.6,4188.5,17.01068955]